{"text_format":"3","workbook":"xlsx","n_sheets":13,"sheets":["시작","기본 사항","함수 소개","AVERAGE","MIN 및 MAX","날짜 및 시간","텍스트와 숫자 결합","IF 문","VLOOKUP","조건부 함수","함수 마법사","수식 오류","자세한 정보"],"not_rendered":{"images":33,"defined_names":21},"read":"whole","date_system":"1900"}

{"sheet":"시작","index":0,"n_rows":4,"n_cols":1,"rows_kept":4}
[]
["수식 시작"]
["가장 강력한 스프레드시트 앱인 Excel에서 몇 단계만으로 수식과 함수를 작성할 수 있습니다."]
["맨 위로 돌아가려면 <Ctrl+Home>을 누릅니다. 둘러보기를 시작하려면 <Ctrl+Page Down>을 누릅니다."]

{"sheet":"기본 사항","index":1,"n_rows":43,"n_cols":10,"rows_kept":43}
["기본 사항: Excel을 사용한 수학 계산"]
["Excel에서는 기본 제공 함수를 사용하지 않고도 더하기, 빼기, 곱하기, 나누기를 할 수 있습니다. 기본 연산자 +, -, *, /만 사용하면 됩니다. 모든 수식은 등호(=)로 시작합니다.\n",null,"사용할 숫자:",null,"연산:","수식:","답:"]
["더하기를 하려면 F3 셀을 선택하고 =C3+C4를 입력한 다음 <Enter> 키를 누릅니다. \n",null,1,null,"더하기(+) ",null,{"$f":"C3+C4","v":3}]
["빼기를 하려면 F4 셀을 선택하고 =C3-C4를 입력한 다음 <Enter> 키를 누릅니다. ",null,2,null,"빼기(-) ",null,{"$f":"C3-C4","v":-1}]
["곱하기를 하려면 F5 셀을 선택하고 =C3*C4를 입력한 다음 <Enter> 키를 누릅니다.\n",{"$nulls":3},"곱하기(*) ",null,{"$f":"C3*C4","v":2}]
["나누기를 하려면 F6 셀을 선택하고 =C3/C4를 입력한 다음 <Enter> 키를 누릅니다.\n",{"$nulls":3},"나누기(/) ",null,{"$f":"C3/C4","v":0.5}]
["확인해 보기: C3 및 C4 셀에서 숫자를 변경하면 수식 결과가 자동으로 변경됩니다.",{"$nulls":3},"거듭제곱(^) ",null,{"$f":"C3^C4","v":1}]
["추가 과제: =A1^A2와 같이 캐럿(^) 기호를 사용하여 값을 거듭제곱할 수 있습니다. <Shift+6>을 사용하여 입력합니다. F7 셀에 =C3^C4를 입력합니다."]
["자세한 내용을 보려면 아래로 스크롤합니다."]
["다음 단계"]
["수식, 셀 및 범위에 대한 자세한 정보"]
["Excel은 행과 열로 그룹화된 개별 셀로 이루어져 있습니다. 행에는 번호가, 열에는 문자가 적혀 있습니다. 1백만 개 이상의 행과 16,000개 열이 있으며 어디에나 수식과 함수를 입력할 수 있습니다. \n"]
["수식은 셀 참조, 셀 참조 범위, 연산자 및 상수를 포함할 수 있습니다. 다음은 모두 수식의 예입니다.\n\n=A1+B1\n=10+20\n=SUM(A1:A10)\n\n"]
["위의 세 번째 예제에서는 SUM 함수를 사용했습니다. 함수는 미리 작성된 명령으로, 하나 이상의 값을 가져와 특정 방식으로 계산하고 결과를 반환합니다. 예를 들어 SUM 함수는 지정하는 셀 참조 또는 범위를 가져와 합계를 계산합니다. 이 예제에서는 A1~A10 셀을 가져와 합계를 계산합니다. Excel에는 400개가 넘는 함수가 있으며, 수식 탭에서 탐색할 수 있습니다.\n"]
["함수를 사용하는 수식은 등호 기호로 시작한 다음 함수 이름이 오고 함수의 인수(함수가 계산하는 데 사용하는 값)가 괄호로 묶여 뒤따릅니다. \n"]
["<Enter> 키를 눌러 수식을 확인합니다. 그러면 수식이 계산되고 결과가 셀에 표시됩니다. 수식 자체를 보려면 리본 아래의 수식 표시줄을 보거나 <F2> 키를 눌러 편집 모드로 전환하면 셀의 수식이 보입니다. <Enter> 키를 다시 눌러 수식을 완료하고 결과를 계산합니다.\n\n"]
["수식에 대한 간단한 설명"]
["수식 =10+20에서 10과 20은 상수이며 + 기호는 연산자입니다."]
["수식 =SUM(A1:A10)에서 SUM은 함수 이름이고 여는 괄호와 닫는 괄호 사이에 수식 인수가 포함되며 A1:A10은 함수의 셀 범위입니다."]
["수식 =SUM(A1:A10,C1:C10)에서 SUM은 함수 이름이고 여는 괄호와 닫는 괄호 사이에 수식 인수가 포함되며 A1:A10,C1:C10은 쉼표로 구분된 함수의 셀 범위입니다."]
["알아 둘 사항: 상수는 셀 또는 수식에 입력하는 값입니다. =10+20이 =A1+B1과 동일하게 계산될 수도 있지만 상수는 좋은 방법이 아닙니다. 왜 그럴까요? 셀을 선택하고 상수를 찾지 않는 한 상수를 확인하기는 쉽지 않기 때문입니다. 때문에 나중에 상수를 변경하기가 어려울 수 있습니다. 상수를 셀에 넣는 것이 휠씬 쉽습니다. 이 경우 상수를 쉽게 조정할 수 있고 수식에서 참조할 수 있습니다.\n\n예를 들면 다음과 같습니다. 아래에서 12가 있는 노란색 셀을 선택합니다. 여기서는 SUM 함수와 셀 범위를 사용했습니다. \"4\"나 \"8\"을 수식에 직접 입력하지 않았습니다. \n"]
["이전"]
["다음"]
["웹에서 자세한 내용 보기"]
["Excel을 계산기로 사용"]
["Excel의 수식 개요"]
["Excel 함수(범주별) "]
["Excel 함수(사전순) "]
["온라인 무료 Excel 교육"]
{"$rows_empty":10}
[{"$nulls":9},"값"]
[{"$nulls":9},4]
[{"$nulls":9},8]
[{"$nulls":9},{"$f":"SUM(J41:J42)","v":12}]

{"sheet":"함수 소개","index":2,"n_rows":51,"n_cols":7,"rows_kept":51}
["함수 소개"]
["함수를 사용하면 수학 연산을 수행하거나 값을 조회하거나 날짜와 시간을 계산하는 등 다양한 작업을 할 수 있습니다. SUM 함수로 값을 더하는 몇 가지 방법을 시도해 보겠습니다.",null,"과일","금액",null,"육류","금액"]
["과일의 양(D7 셀) 아래에 =SUM(D3:D6)을 입력하거나 =SUM(을 입력한 다음 마우스로 해당 범위를 선택하고 <Enter> 키를 누릅니다. 그러면 D3, D4, D5 및 D6 셀에 있는 값의 합계를 구합니다. 답은 170입니다.\n",null,"사과",50,null,"쇠고기",50]
["이제 자동 합계를 사용해 보겠습니다. 육류 열(G7 셀)에서 셀을 선택한 다음 수식 > 자동 합계로 이동하고 합계를 선택합니다. 수식이 자동으로 입력됩니다. <Enter> 키를 눌러 확인합니다. 자동 합계 기능에는 가장 일반적인 함수가 모두 있습니다.\n",null,"오렌지",20,null,"닭고기",30]
["다음은 유용한 바로 가기 키입니다. D15 셀을 선택하고 <Alt =>를 누른 다음 <Enter> 키를 누릅니다. 그러면 SUM이 자동으로 입력됩니다.",null,"바나나",60,null,"돼지고기",10]
["자세한 내용을 보려면 아래로 스크롤합니다.",null,"레몬",40,null,"생선",50]
["추가 과제\n앞에서 시도한 방법 중 하나로 COUNT 함수를 사용해 봅니다. COUNT 함수는 범위에서 숫자를 포함하는 셀의 개수를 계산합니다.",null,"합계 > ",{"$f":"SUM(D3:D6)","v":170},null,"합계 > "]
["다음 단계"]
["함수에 대한 자세한 정보",null,"항목","금액",null,"항목","금액"]
["수식 탭으로 이동하고 텍스트, 날짜 및 시간 등과 같이 함수가 범주별로 나열되어 있는 함수 라이브러리를 찾아봅니다. 함수 삽입을 사용하면 이름으로 함수를 검색하고 수식 작성에 도움이 될 수 있는 함수 마법사를 시작할 수 있습니다. \n\n=를 누른 후 함수 이름을 입력하기 시작하면 Intellisense가 실행되어 입력한 문자로 시작하는 함수가 모두 나열됩니다. 원하는 함수를 찾고 <Tab> 키를 누르면 함수 이름이 자동으로 완료되고 여는 가로가 입력됩니다. 선택적 인수와 필수 인수도 표시됩니다. \n\n\n\n이제 몇 가지 함수의 구조를 살펴보겠습니다. SUM 함수의 구조는 다음과 같습니다.",null,"빵",50,null,"빵",50]
["이 SUM 함수를 설명하면 D35~D38 셀에 있는 모든 값과 H 열에 있는 모든 값의 합계를 반환한다는 것을 나타냅니다. SUM은 함수 이름이고, D35:D38은 거의 항상 필요한 첫 번째 범위 인수이고 H:H는 쉼표로 구분된 두 번째 범위 인수입니다. 이제 인수가 필요하지 않은 함수 하나를 사용해 보겠습니다.\n",null,"도넛",100,null,"도넛",100]
["TODAY 함수는 오늘 날짜를 반환하며, Excel에서 다시 계산할 때 자동으로 업데이트됩니다.",null,"쿠키",40,null,"쿠키",40]
["확인해 보기\n이러한 셀을 선택합니다. Excel 창의 오른쪽 아래 모서리에 있는 아래쪽 표시줄에서 SUM: 170을 찾습니다. 상태 표시줄이라고 하는 이 표시줄은 선택한 셀 또는 범위에 대한 합계와 기타 세부 정보를 찾을 수 있는 또 다른 방법입니다. ",null,"케이크",50,null,"케이크",50]
["중요한 정보\n이 셀을 두 번 클릭합니다. 끝쪽에 100이 있는 것을 확인할 수 있습니다. 이처럼 수식에 숫자를 지정할 수도 있지만 꼭 필요하지 않은 경우 지정하지 않는 것이 좋습니다. 이러한 숫자는 상수라고 하며 숫자가 있는 것을 잊어버리기가 쉽습니다. F51 셀과 같은 다른 셀을 대신 참조하는 것이 좋습니다. 이렇게 하면 값이 쉽게 표시되며 수식 안에 숨겨지지 않습니다. ",null,"파이",20,null,"파이",20]
["웹에서 자세한 내용 보기",null,"합계 > ",null,null,"개수 >"]
["SUM 함수에 대한 자세한 정보"]
["자동 합계 숫자 합계 구하기"]
["COUNT 함수에 대한 자세한 정보"]
["온라인 무료 Excel 교육"]
["맨 위로 이동"]
["다음 단계"]
{"$rows_empty":12}
[null,null,"과일","금액"]
[null,null,"사과",50]
[null,null,"오렌지",20]
[null,null,"바나나",60]
[null,null,"레몬",40]
[null,null,"합계 > ",{"$f":"SUM(D35:D38)","v":170}]
[]
[]
[]
[]
[null,null,"항목","금액"]
[null,null,"자동차",20]
[null,null,"트럭",10]
[null,null,"자전거",10]
[null,null,"스케이트",40]
[]
[{"$nulls":3},"합계:",null,"추가 값","새 합계"]
[{"$nulls":3},{"$f":"SUM(D45:D48,100)","v":180},null,100,{"$f":"SUM(D45:D48,F51)","v":180}]

{"sheet":"AVERAGE","index":3,"n_rows":15,"n_cols":7,"rows_kept":15}
["AVERAGE 함수"]
["AVERAGE 함수를 사용하면 셀 범위에 있는 숫자의 평균을 낼 수 있습니다.",null,"과일","금액",null,"육류","금액"]
["D7 셀을 선택한 다음 자동 합계를 사용하여 AVERAGE 함수를 추가합니다.",null,"사과",50,null,"쇠고기",50]
["이제 G7 셀을 선택하고 =AVERAGE(G3:G6)을 입력하여 AVERAGE 함수를 입력합니다. ",null,"오렌지",20,null,"닭고기",30]
["D15 셀에서 자동 합계를 사용하거나 입력하여 다른 AVERAGE 함수를 입력할 수 있습니다. ",null,"바나나",60,null,"돼지고기",10]
["확인해 보기\n원하는 숫자 범위를 선택하고 상태 표시줄에서 평균을 즉시 확인할 수 있습니다.\n",null,"레몬",40,null,"생선",50]
["이전 시트 활성화",null,"평균 >",null,null,"평균 >"]
["다음 시트로 이동"]
["추가 과제\n여기에서 MEDIAN 또는 MODE를 사용해 보세요. \n\nMEDIAN은 데이터 집합의 중간 값을 반환하고, \nMODE는 가장 자주 나오는 값을 반환합니다.\n",null,"항목","금액",null,"항목","금액"]
["웹의 자세한 정보에 대한 링크",null,"빵",50,null,"빵",50]
["웹에서 AVERAGE 함수에 대해 자세히 알아보려면 선택합니다.",null,"도넛",100,null,"도넛",100]
["웹에서 MEDIAN 함수에 대해 자세히 알아보려면 선택합니다.",null,"쿠키",40,null,"쿠키",40]
["웹에서 MODE 함수에 대해 자세히 알아보려면 선택합니다.",null,"케이크",50,null,"케이크",50]
["웹에서 무료 Excel 교육에 대해 알아보려면 선택합니다.",null,"파이",20,null,"파이",20]
[null,null,"평균 >"]

{"sheet":"MIN 및 MAX","index":4,"n_rows":15,"n_cols":7,"rows_kept":15}
["MIN 및 MAX 함수"]
["MIN 함수를 사용하면 셀 범위에서 최소수를 구할 수 있습니다.",null,"과일","금액",null,"육류","금액"]
["MAX 함수를 사용하면 셀 범위에서 최대수를 구할 수 있습니다.",null,"사과",50,null,"쇠고기",50]
["D7 셀을 선택한 다음 자동 합계 마법사를 사용하여 MIN 함수를 추가합니다.\n",null,"오렌지",20,null,"닭고기",30]
["이제 G7 셀을 선택하고 =MAX(G3:G6)을 입력하여 MAX 함수를 입력합니다.\n",null,"바나나",60,null,"돼지고기",10]
["D15 셀에서 자동 합계 마법사를 사용하거나 직접 입력하여 MIN 또는 MAX 함수를 입력할 수 있습니다. \n",null,"레몬",40,null,"생선",50]
["웹에서 자세한 내용 보기\n",null,"최소값 >",null,null,"최대값 >"]
["MIN 함수에 대한 자세한 정보"]
["MAX 함수에 대한 자세한 정보",null,"항목","금액",null,"항목","금액"]
["온라인 무료 Excel 교육",null,"빵",50,null,"빵",50]
["알아 둘 사항\nMIN 또는 MAX에 여러 범위 또는 값을 사용하여 이러한 값 중 더 작거나 큰 값을 표시할 수 있습니다(예: =MIN(A1:A10,B1:B10) 또는 =MAX(A1:A10,B1)). 여기서 B1에는 10과 같은 임계값이 포함되며 이 경우 이 수식은 10보다 작은 결과를 반환하지 않습니다.\n",null,"도넛",100,null,"도넛",100]
[null,null,"쿠키",40,null,"쿠키",40]
[null,null,"케이크",50,null,"케이크",50]
[null,null,"파이",20,null,"파이",20]
[null,null,"최소값 또는 최대값 >",{"$nulls":3},{"$f":"MIN(G10:G14,10)","v":10}]

{"sheet":"날짜 및 시간","index":5,"n_rows":47,"n_cols":6,"rows_kept":47,"merged":[[4,2,4,3],[26,2,26,3],[30,2,30,3],[44,2,44,3]]}
["날짜 함수"]
["Excel에서는 컴퓨터의 국가별 설정에 따라 현재 날짜를 제공할 수 있습니다. 날짜를 더하거나 뺄 수도 있습니다."]
["오늘 날짜를 제공하는 TODAY 함수를 확인하세요. 이 함수는 실시간 또는 일시적 함수이므로 내일 통합 문서를 열면 내일 날짜를 반환합니다. D6 셀에 =TODAY()를 입력합니다. \n"]
["날짜 빼기 - D7 셀에 다음 생일을 YY-M-D 형식으로 입력하고 Excel에서 D8 셀의 =D7-D6을 사용하여 생일이 얼마나 남았는지 반환하는 것을 봅니다.\n"]
["날짜 더하기 - 청구서의 만기 날짜나 도서관 책을 반납해야 하는 날짜를 알고 싶다고 가정합니다. 날짜에 일 수를 더해 확인할 수 있습니다. D10 셀에 임의의 일 수를 입력합니다. D11 셀에서 =D6+D10을 추가하여 오늘을 기준으로 기한을 계산했습니다.\n",null,"날짜 함수"]
["알아 둘 사항\nExcel에서는 날짜 및 시간을 1900년 1월 1일부터의 일 수로 저장합니다. 시간은 분을 기준으로 일의 소수 부분으로 저장됩니다. 따라서 2017년 1월 1일 오후 12:30은 실제로 42736.5208로 저장됩니다. 시간 또는 날짜가 이와 같은 숫자로 표시되는 경우 Ctrl+1 > 표시 형식를 누리고 날짜 또는 시간 형식 선택을 누를 수 있습니다. ",null,"오늘 날짜:",null,null,{"$f":"IF(D6=TODAY(),\"바로 그겁니다!\",\"\")","v":""}]
["중요한 정보\nExcel에서 생일을 아직 입력하지 않았기 때문에 음수를 표시하는 일을 방지하려면 =IF(D7=\"\",\"\",D7-D6)과 같은 IF 함수를 사용할 수 있습니다. 이 수식은 \"D7에 아무 내용도 없으면 아무것도 표시하지 않고 그렇지 않으면 D7에서 D6을 뺌”을 나타냅니다.\n",null,"생일:"]
["시간 함수",null,"생일까지 남은 일수:",{"$f":"D7-D6","v":0}]
["Excel에서는 컴퓨터의 국가별 설정에 따라 현재 시간을 제공할 수 있습니다. 시간을 더하거나 뺄 수도 있습니다. 예를 들어 직원이 매주 근무한 시간을 추적하고 급여와 초과 근무 수당을 계산할 수 있습니다.\n"]
["D28 셀에 =NOW()를 입력하면 현재 시간이 반환되며 이 값은 Excel이 계산할 때마다 업데이트됩니다. 시간 형식을 변경해야 하는 경우 Ctrl+1 > 숫자 > 시간으로 이동하고 원하는 형식을 선택할 수 있습니다.\n",null,"유예 기간(일):"]
["두 시간 사이의 시간 계산 - D36 셀에 =((D35-D32)-(D34-D33))*24를 입력합니다. 이 수식은 누군가의 시작 시간과 종료 시간을 계산한 다음 점심 식사에 걸린 시간을 뺍니다. 수식 끝의 *24는 Excel에 표시되는 일의 소수 부분을 시간으로 변환합니다. 그렇더라도 셀의 형식을 숫자로 지정해야 합니다. 이렇게 하려면 홈 > 셀 서식 > (Ctrl+1) > 표시 형식 > 숫자로 이동하고 소수점 두 자리를 선택합니다.\n\n",null,"청구서 기한:",{"$f":"D6+D10","v":"00:00:00"}]
["이 수식을 말로 설명하면 \"종료 시간을 가져와 시작 시간에서 빼고 점심 시작/종료 시간을 뺀 다음 여기에 24를 곱해 Excel의 소수 시간을 시간으로 변환\" 또는 =((종료 시간- 시작 시간)-(점심 종료 - 점심 시작))*24를 나타냅니다.\n"]
["이전"]
["다음"]
["웹에서 자세한 내용 보기"]
["TODAY 함수에 대한 자세한 정보"]
["NOW 함수에 대한 자세한 정보"]
["DATE 함수에 대한 자세한 정보"]
["온라인 무료 Excel 교육"]
{"$rows_empty":7}
[null,null,"시간 함수"]
[null,null,"현재 시간:"]
[]
[]
[null,null,"일별 근무 시간"]
[null,null,"시작 시간:","08:00:00"]
[null,null,"점심 시작:","12:00:00"]
[null,null,"점심 종료:","13:00:00"]
[null,null,"종료 시간:","17:00:00"]
[null,null,"시간 합계:",{"$f":"((D35-D32)-(D34-D33))*24","v":8.000000000000002}]
{"$rows_empty":8}
[null,null,"정적 날짜 및 시간"]
[null,null,"날짜:","2017-09-27"]
[null,null,"시간:","08:52:00"]

{"sheet":"텍스트와 숫자 결합","index":6,"n_rows":37,"n_cols":6,"rows_kept":37,"merged":[[26,2,26,3],[30,2,30,3],[34,2,34,3]]}
["다른 셀의 텍스트 결합"]
["Excel에서는 다른 셀의 텍스트를 결합하려는 경우가 많을 수 있습니다. 다음은 매우 일반적인 예제로, 이름과 성이 있을 때 이름, 성 또는 전체 이름으로 결합하려고 합니다. 다행히 Excel에서는 <Shift+7>로 입력할 수 있는 앰퍼샌드(&) 기호로 이렇게 할 수 있습니다.\n",null,"이름","성","성, 이름","전체 이름"]
["E3 셀에 =D3&C3을 입력하여 이름과 성을 결합합니다. \n",null,"미연","하",{"$f":"D3&\", \"&C3","v":"하, 미연"},{"$f":"C3&\" \"&D3","v":"미연 하"}]
["하지만 하미연는 올바르지 않으므로 쉼표와 공백 추가해야 합니다. 이렇게 하려면 따옴표를 사용하여 새 텍스트 문자열을 만듭니다. 여기서는 =D3&\", \"&C3을 입력합니다. &\", \"& 부분을 사용하여 쉼표와 공백을 셀의 텍스트와 결합할 수 있습니다.\n",null,"예준","나"]
["전체 이름을 만들려면 이름 및 성을 결합하지만 쉼표 없이 공백을 사용합니다. F3 셀에 C3&\" \"&D3을 입력합니다.\n",null,"진민","성"]
["자세한 내용을 보려면 아래로 스크롤합니다.",null,"민지","지"]
["다음",null,"진영","강"]
["텍스트 및 숫자를 함께 사용",null,"지후","구"]
["이제 &를 사용하여 텍스트와 텍스트만이 아니라 텍스트와 숫자를 결합합니다.\n\nC28:D29 셀을 살펴봅니다. 별도의 셀에 날짜와 시간이 있는 것이 보이나요? C32:C33 셀에 나온 것처럼 & 기호를 사용하여 날짜와 시간을 결합할 수 있지만 올바르게 보이지 않습니다. 아쉽게도 Excel에서는 사용자가 숫자 서식을 어떻게 지정하려는지 알지 못하므로 숫자를 가장 기본적인 서식(이 경우에는 일련 번호 데이터)으로 쪼갭니다. 수식에서 숫자 부분의 서식을 명시적으로 지정해야만 결과 텍스트 문자열에서 원하는 방식으로 표시됩니다. 이 작업은 TEXT 함수와 서식 코드를 사용하여 수행할 수 있습니다.",null,"준서","주"]
["C36 셀에 =C28&\" \"&TEXT(D28,\"YYYY년 M월 D일\")를 입력합니다. YYYY년 M월 D일 는 연 월 일도에 대한 미국 서식 코드(예: 09/25/2017)입니다.\n",null,"수빈","권"]
["C37 셀에 =C29&\" \"&TEXT(D29,\"H:MM\")을 입력합니다. H:MM은 시간:에 대한 미국 서식 코드입니다(예 13:30)."]
["확인해 보기\n수식, 특히 큰 수식은 읽기 어려운 경우가 있을 수 있지만 다음과 같이 공백으로 부분을 분리할 수 있습니다.\n\n=C28 & \" \" & TEXT(D28,\"MM/DD/YYYY\")"]
["살펴볼 사항\n어떤 서식 코드를 사용할지 모르겠으면 Ctrl+1 > 숫자를 사용하여 셀을 원하는 서식으로 지정할 수 있습니다. 그런 다음 사용자 지정 옵션을 선택합니다. 표시된 서식 코드를 수식에 다시 복사할 수 있습니다."]
["웹에서 자세한 내용 보기"]
["TEXT 함수에 대한 자세한 정보"]
["텍스트와 숫자 결합"]
["온라인 무료 Excel 교육"]
{"$rows_empty":9}
[null,null,"텍스트 및 숫자 사용"]
[null,null,"오늘 날짜:",{"$f":"TODAY()","v":"2019-08-14"}]
[null,null,"현재 시간:",{"$f":"NOW()","v":43691.58287974537}]
[]
[null,null,"텍스트 및 숫자 결합"]
[null,null,{"$f":"C28&\" \"&D28","v":"오늘 날짜: 43691"}]
[null,null,{"$f":"C29&\" \"&D29","v":"현재 시간: 43691.5828797454"}]
[]
[null,null,"텍스트 및 숫자 서식 지정"]
[null,null,{"$f":"C28 &\" \"& TEXT(D28,\"YYYY년 M월 D일\")","v":"오늘 날짜: 2019년 8월 14일"}]
[null,null,{"$f":"C29&\" \"&TEXT(D29,\"H:MM\")","v":"현재 시간: 13:59"}]

{"sheet":"IF 문","index":7,"n_rows":37,"n_cols":6,"rows_kept":37,"merged":[[7,2,7,3]]}
["IF 문"]
["IF 문을 사용하면 조건을 논리적으로 비교할 수 있습니다. IF 문에서는 일반적으로 하나의 조건이 맞으면 어떤 작업을 수행하고 그렇지 않으면 다른 작업을 수행하도록 합니다. 이 수식은 텍스트, 값 또는 추가 계산을 반환할 수 있습니다."]
["D9 셀에 =IF(C9=\"사과\",TRUE,FALSE)를 입력합니다. 정답은 TRUE입니다. \n"]
["D9를 D10에 복사합니다. 여기의 답은 FALSE여야 합니다. 오렌지는 사과가 아니기 때문입니다.\n"]
["D12 셀의 수식을 보고 다른 예제를 시도합니다. =IF(C12<100,\"100보다 작음\",\"100보다 크거나 같음\")으로 시작합니다. C12 셀에 100보 큰 숫자를 입력하면 어떻게 되나요?\n"]
["중요한 정보\nTRUE 및 FALSE는 Excel 수식의 다른 단어와 달리 따옴표로 묶을 필요가 없으며 Excel에서 자동으로 대문자로 만듭니다. 숫자도 따옴표로 묶을 필요가 없습니다. 예나 아니요 같은 일반 텍스트는 다음과 같이 따옴표로 묶어야 합니다. \n= IF(C9 = \"사과\", \"예\",\"아니요\")"]
["자세한 내용을 보려면 아래로 스크롤합니다."]
["다음",null,"IF 문"]
["다른 함수를 사용하는 IF 문",null,"사과"]
["IF 문에서는 특정 조건이 충족될 경우 추가 계산을 수행하도록 할 수도 있습니다. 여기서는 셀을 평가하여 판매세를 부과해야 하는지 확인하고 조건에 맞는 경우 판매세를 계산합니다.\n",null,"오렌지"]
["F33 셀에 =IF(E33=\"예\",F31*SalesTax,0)를 입력했습니다. 여기서 SalesTax는 값이 0.0825인 명명된 범위로 설정했습니다. 이 수식은 E33 셀이 예인 경우 F31 셀에 SalesTax를 곱하고, 그렇지 않은 경우 0을 반환합니다.\n\nE33 셀에서 예를 아니요로 바꾸고 계산이 어떻게 변하는지 확인해 봅니다."]
["다음으로 필요한 경우 운송료를 계산하는 IF 문을 추가했습니다. F35 셀에 =IF(E35=\"예\",SUM(D28:D29)*1.25,0)이 보입니다. 이는 \"E35 셀이 예인 경우 위 표에서 수량 열의 합계를 구하고 여기에 1.25를 곱하고, 그렇지 않으면 0을 반환\"함을 나타냅니다.\n",null,50,{"$f":"IF(C12<100,\"100보다 작음\",\"100보다 크거나 같음\")","v":"100보다 작음"}]
["다음으로 F35 셀의 수식에서 1.25를 \"운송료\"로 변경합니다. 입력을 시작하면 Excel의 자동 고침에서 운송료를 자동으로 찾습니다. 찾으면 Tab 키를 눌러 입력합니다. 이는 명명된 범위이며 수식 > 이름 정의에서 입력했습니다. 이제 배송 비용을 변경해야 하는 경우 한 곳에서만 변경하면 되며 통합 문서 어디서나 운송료 이름을 사용할 수 있습니다.\n\n"]
["알아 둘 사항\n수식을 작성할 때 Excel에서는 수식에서 참조된 범위 주위에 자동으로 색이 지정된 테두리를 표시하고 수식에서 해당 범위가 같은 색이 됩니다. F33 셀을 선택하고 F2 키를 눌러 수식을 편집하면 확인할 수 있습니다."]
["전문가 팁\n명명된 범위를 사용하면 조건 또는 값을 한 곳에서 정의한 다음 이를 통합 문서 전체에서 다시 사용할 수 있습니다. 수식 > 이름 관리자로 이동하면 이 통합 문서에 있는 모든 명명된 범위를 확인할 수 있습니다. 자세한 내용을 보려면 여기를 클릭하세요.\n"]
["이전"]
["다음"]
["웹에서 자세한 내용 보기"]
["IF 함수에 대한 자세한 정보"]
["IFS 수에 대한 자세한 정보"]
["고급 IF 문"]
["온라인 무료 Excel 교육"]
[]
[]
[]
[]
[null,null,"항목","수량","비용","합계"]
[null,null,"위젯",2,{"v":9.760711585683554,"d":"₩9.76"},{"$f":"'IF 문'!$E$28:$E$29*'IF 문'!$D$28:$D$29","v":{"v":19.521423171367108,"d":"₩19.52"}}]
[null,null,"Doohickey",3,{"v":3.4189202461080024,"d":"₩3.42"},{"$f":"'IF 문'!$E$28:$E$29*'IF 문'!$D$28:$D$29","v":{"v":10.256760738324008,"d":"₩10.26"}}]
[]
[{"$nulls":3},"소계",{"$f":"SUM('IF 문'!$E$28:$E$29)","v":{"v":13.179631831791557,"d":"₩13.18"}},{"$f":"SUM('IF 문'!F28:F29)","v":{"v":29.778183909691116,"d":"₩29.78"}}]
[]
[{"$nulls":3},"판매세","예",{"$f":"IF(E33=\"예\",F31*SalesTax,0)","v":{"v":2.456700172549517,"d":"₩2.46"}}]
[]
[{"$nulls":3},"배송료","예",{"$f":"IF(E35=\"예\",SUM(D28:D29)*1.25,0)","v":{"v":6.25,"d":"₩6.25"}}]
[]
[{"$nulls":3},"합계",null,{"$f":"SUM(F33,F31,F35)","v":{"v":38.48488408224063,"d":"₩38.48"}}]

{"sheet":"VLOOKUP","index":8,"n_rows":43,"n_cols":7,"rows_kept":43}
["VLOOKUP"]
["VLOOKUP은 Excel에서 가장 널리 사용되는 함수로 우리도 즐겨 사용하는 함수입니다. VLOOKUP을 사용하면 왼쪽의 열에서 값을 찾은 다음 일치하는 항목을 찾으면 오른쪽에 있는 다른 열의 정보를 반환합니다. VLOOKUP은 다음을 나타냅니다.\n"]
["=VLOOKUP(A1,B:C,2,FALSE)"]
["찾으려는 항목은 무엇인가요?"]
["찾은 경우 오른쪽의 몇 개 열에서 값을 가져오나요?"]
["어디에서 찾나요?"]
["정확히 일치 또는 유사 일치 중 무엇을 원하나요?"]
["D22 셀에 =VLOOKUP(C22,C17:D20,2,FALSE)를 입력합니다. 사과에 대한 정답은 50입니다. VLOOKUP은 사과를 찾고 찾으면 오른쪽으로 한 개 열을 건너가서 그 열의 수량을 반환했습니다.\n\n"]
["이제 육류 구역의 G22 셀에 직접 입력해 봅니다. =VLOOKUP(F22,F17:G20,2,FALSE)와 같이 입력해야 합니다.\n\n"]
["실험\n드롭다운 목록에서 다른 항목을 선택해 봅니다. 결과 셀이 새 값으로 즉시 업데이트됩니다."]
["자세한 내용을 보려면 아래로 스크롤합니다."]
["다음"]
["VLOOKUP 및 #N/A"]
["VLOOKUP에서 요청하는 항목을 찾을 수 없어서 오류(#N/A)를 반환하는 경우는 언제든 발생하기 마련입니다. 단순히 조회 값이 없기 때문이거나 참조 셀에 아직 값이 없기 때문일 수도 있습니다.\n"]
["조회 값이 있음을 알고 있지만 조회 셀이 비어 있더라도 오류를 숨기려는 경우 IF 문을 사용할 수 있습니다. 이 경우 D43 셀에서 기존 VLOOKUP 수식을 다음과 같이 괄호로 묶습니다.\n\n=IF(C43=\"\",\"\",VLOOKUP(C43,C37:D41,2,FALSE))\n\n이 수식은 C43 셀이 없음(\"\")과 동일하면 아무것도 반환하지 않고 그렇지 않으면 VLOOKUP의 결과를 반환함을 나타냅니다. 수식 맨 끝에 두 번째 닫는 괄호가 있습니다. 이 괄호는 IF 문을 닫습니다.\n"]
["조회 값이 있는지 확실하지 않지만 그래도 #N/A 오류를 표시하지 않으려는 경우 G43 셀에 IFERROR라는 오류 처리 함수를 사용할 수 있습니다(=IFERROR(VLOOKUP(F43,F37:G41,2,FALSE),\"\")). IFERROR는 VLOOKUP에서 유효한 결과를 반환하는 경우 해당 결과를 표시하고 그러지 않는 경우 아무것도 표시하지 않음(\"\")을 나타냅니다. 여기서는 아무것도 표시하지 않았지만(\"\"), 숫자(0,1, 2 등)나 \"수식이 잘못됨\"과 같은 텍스트를 사용할 수도 있습니다.\n",null,"과일","금액",null,"육류","금액"]
["중요한 정보\nIFERROR는 이른바 포괄적 오류 처리기로 수식에서 발생할 수 있는 모든 오류를 표시하지 않습니다. 따라서 Excel에서 수식에 수정해야 하는 적당한 오류가 있다고 알리는 경우에 문제가 발생할 수 있습니다.\n\n경험에 따르면 수식이 제대로 동작한다고 전적으로 확신하기 전까지는 수식에 오류 처리기를 추가하지 않는 것이 좋습니다.",null,"사과",50,null,"쇠고기",50]
["이전",null,"오렌지",20,null,"닭고기",30]
["다음",null,"바나나",60,null,"돼지고기",10]
["웹에서 자세한 내용 보기",null,"레몬",40,null,"생선",50]
["VLOOKUP 함수에 대한 자세한 정보"]
["INDEX/MATCH 함수에 대한 자세한 정보",null,"사과",null,null,"돼지고기"]
["IFERROR 함수에 대한 자세한 정보"]
["피벗 테이블을 사용하여 워크시트 데이터 분석"]
["온라인 무료 Excel 교육"]
{"$rows_empty":9}
[null,null,"D42 셀의 SUM 함수는 다음을 나타낼 수 있습니다. D38, D39, D40 및 D41 셀의 값을 더합니다."]
[null,null,"항목","금액",null,"항목","금액"]
[null,null,"빵",50,null,"빵",50]
[null,null,"도넛",100,null,"도넛",100]
[null,null,"쿠키",40,null,"쿠키",40]
[null,null,"케이크",50,null,"케이크",50]
[null,null,"파이",20,null,"파이",20]
[]
[{"$nulls":3},{"$f":"VLOOKUP(C43,C37:D41,2,FALSE)","v":{"$error":"#N/A"}},null,"페이스트리",{"$f":"IFERROR(VLOOKUP(F43,F37:G41,2,FALSE),\"\")","v":""}]

{"sheet":"조건부 함수","index":9,"n_rows":123,"n_cols":34,"rows_kept":123}
["조건부 함수 - SUMIF"]
["조건부 함수를 사용하면 지정된 조건 또는 지정하는 조건을 기준으로 범위에 대한 합계, 평균 및 개수를 구하거나 최소값 또는 최대값을 얻을 수 있습니다. 예를 들어 목록의 모든 과일 중에 사과는 몇 개인지나, 플로리다 품종의 오렌지는 몇 개인지를 알 수 있습니다.",null,"과일","금액",null,"과일","품종","금액",{"$nulls":17},"과일",null,"사과",null,"오렌지",null,"바나나",null,"레몬"]
["SUMIF를 사용하면 다른 범위에서 찾는 특정 조건(예: 가지고 있는 사과 수)에 따라 한 범위에서 합계를 구할 수 있습니다. D17 셀을 선택하고 =SUMIF(C3:C14,C17,D3:D14)를 입력합니다. SUMIF의 구조는 다음과 같습니다.",null,"사과",50,null,"사과","후지",50,{"$nulls":17},"사과",null,"후지",null,"플로리다",null,"캐번디시",null,"러프"]
["=SUMIF(C3:C14,C17,D3:D14)",null,"오렌지",20,null,"오렌지","플로리다",20,{"$nulls":17},"오렌지",null,"허니크리스프",null,"네이블",null,"레이디 핑거",null,"유레카"]
["살펴보려는 범위는 어떻게 되나요?",null,"바나나",60,null,"바나나","캐번디시",60,{"$nulls":17},"바나나"]
["찾으려는 값(텍스트 또는 숫자)은 무엇인가요?",null,"레몬",40,null,"레몬","러프",40,{"$nulls":17},"레몬"]
["찾은 각 일치 항목에 대해 합계를 구하려는 범위는 어떻게 되나요?",null,"사과",50,null,"사과","허니크리스프",50]
["SUMIFS는 SUMIF와 동일하지만 여러 조건을 사용할 수 있습니다. 따라서 이 예제에서는 과일로만이 아니라 과일과 품종을 찾을 수 있습니다. H17 셀을 선택하고 =SUMIFS(H3:H14,F3:F14,F17,G3:G14,G17)을 입력합니다. SUMIFS의 구조는 다음과 같습니다.\n",null,"오렌지",20,null,"오렌지","네이블",20]
["=SUMIFS(H3:H14,F3:F14,F17,G3:G14,G17)",null,"바나나",60,null,"바나나","레이디 핑거",60]
["합계를 구하려는 범위는 어떻게 되나요?",null,"레몬",40,null,"레몬","유레카",40]
["일치 항목을 찾을 첫 번째 범위입니다.",null,"사과",50,null,"사과","허니크리스프",50]
["첫 번째 일치 항목을 찾을 조건입니다.",null,"오렌지",20,null,"오렌지","네이블",20]
["일치 항목을 찾을 두 번째 범위입니다.",null,"바나나",60,null,"바나나","캐번디시",60]
["두 번째 일치 항목을 찾을 조건입니다.",null,"레몬",40,null,"레몬","유레카",40]
["전문가 팁\n과일 및 품종 셀 각각에는 다른 과일을 선택할 수 있는 드롭다운 목록이 있습니다. 사용해 보고 수식이 자동으로 업데이트되는 것을 확인하세요."]
["자세한 내용을 보려면 아래로 스크롤합니다.",null,"과일","SUMIF",null,"과일","품종","SUMIFS"]
["다음 단계",null,"사과",null,null,"오렌지","플로리다"]
["조건부 함수 - COUNTIF"]
["COUNTIF 및 COUNTIFS를 사용하면 지정하는 조건을 기준으로 범위에서 값의 개수를 계산할 수 있습니다. 다른 IF 및 IFS 함수와 약간 다르게 조건 범위와 조건만 사용합니다. 하나의 범위를 계산하지 않고 다른 범위를 찾아 요약합니다."]
["D64 셀을 선택하고 =COUNTIF(C50:C61,C64)를 입력합니다. COUNTIF의 구조는 다음과 같습니다."]
["=COUNTIF(C50:C61,C64)"]
["살펴보려는 범위는 어떻게 되나요?"]
["찾으려는 값(텍스트 또는 숫자)은 무엇인가요?"]
["COUNTIFS는 SUMIF와 동일하지만 여러 조건을 사용할 수 있습니다. 따라서 이 예제에서는 과일로만이 아니라 과일과 품종을 찾을 수 있습니다. H64 셀을 선택하고 =COUNTIFS(F50:F61,F64,G50:G61,G64)를 입력합니다. COUNTIFS의 구조는 다음과 같습니다.\n"]
["=COUNTIFS(F50:F61,F64,G50:G61,G64)"]
["개수를 계산할 첫 번째 범위입니다."]
["첫 번째 일치 항목을 찾을 조건입니다."]
["개수를 계산할 두 번째 범위입니다."]
["두 번째 일치 항목을 찾을 조건입니다."]
["자세한 내용을 보려면 아래로 스크롤합니다."]
["다음"]
["조건부 함수 더 보기"]
["앞에서 SUMIF, SUMIFS, COUNTIF 및 COUNTIFS를 살펴보았습니다. 이제 AVERAGEIF/S, MAXIFS, MINIFS와 같은 다른 함수를 직접 사용해 볼 수 있습니다. 모두 구조가 동일하므로 한 수식을 작성하고 함수 이름만 필요한 이름으로 바꾸면 됩니다. E106 셀에 필요한 함수를 모두 작성되어 있으므로 복사하여 붙여넣거나 연습 삼아서 직접 입력해 넣어도 됩니다.\n\nSUMIF \t=SUMIF(C92:C103,C106,E92:E103) \nSUMIFS \t=SUMIFS(E92:E103,C92:C103,C106,D92:D103,D106) \nAVERAGEIF \t=AVERAGEIF(C92:C103,C106,E92:E103) \nAVERAGEIFS\t=AVERAGEIFS(E92:E103,C92:C103,C106,D92:D103,D106)\nCOUNTIF \t=COUNTIF(C92:C103,C106)\nCOUNTIFS \t=COUNTIFS(C92:C103,C106,D92:D103,D106) \nMAXIFS \t=MAXIFS(E92:E103,C92:C103,C106,D92:D103,D106)\nMINIFS \t=MINIFS(E92:E103,C92:C103,C106,D92:D103,D106)\n"]
["자세한 내용을 보려면 아래로 스크롤합니다."]
["다음"]
["값 인수를 갖는 SUMIF"]
["다음은 보다 큼(>)을 사용하여 지정된 양보다 큰 값을 모두 찾는 SUMIF 함수의 예제입니다."]
[{"$f":"SUMIF(D118:D122,\">=50\")","v":200}]
["이 조건에 따라 일부 값의 합계를 구합니다."]
["...이 범위의 셀을 살펴보고...\n "]
["...값이 50보다 크면 해당 값을 더합니다.\n "]
["참고: 조건부 수식을 많이 만드는 경우 피벗 테이블이 더 나은 해결 방법일 수 있습니다. 자세한 내용은 이 피벗 테이블 문서를 참조하세요."]
["웹에서 자세한 내용 보기"]
["SUMIF 함수에 대한 자세한 정보"]
["SUMIFS 함수에 대한 자세한 정보"]
["COUNTIF 함수에 대한 자세한 정보"]
["COUNTIFS 함수에 대한 자세한 정보"]
["AVERAGEIF 함수에 대한 자세한 정보"]
["AVERAGEIFS 함수에 대한 자세한 정보",null,"과일","금액",null,"과일","품종","금액"]
["MINIFS 함수에 대한 자세한 정보",null,"사과",50,null,"사과","후지",50]
["MAXIFS 함수에 대한 자세한 정보",null,"오렌지",20,null,"오렌지","플로리다",20]
["드롭다운 목록 만들기",null,"바나나",60,null,"바나나","캐번디시",60]
["온라인 무료 Excel 교육",null,"레몬",40,null,"레몬","러프",40]
["맨 위로 이동",null,"사과",50,null,"사과","허니크리스프",50]
["다음",null,"오렌지",20,null,"오렌지","네이블",20]
[null,null,"바나나",60,null,"바나나","레이디 핑거",60]
[null,null,"레몬",40,null,"레몬","유레카",40]
[null,null,"사과",50,null,"사과","허니크리스프",50]
[null,null,"오렌지",20,null,"오렌지","네이블",20]
[null,null,"바나나",60,null,"바나나","캐번디시",60]
[null,null,"레몬",40,null,"레몬","유레카",40]
[]
[null,null,"과일","COUNTIF",null,"과일","품종","COUNTIFS"]
[null,null,"사과",{"$f":"COUNTIF(C50:C61,C64)","v":3},null,"오렌지","플로리다",{"$f":"COUNTIFS(F50:F61,F64,G50:G61,G64)","v":1}]
{"$rows_empty":26}
[null,null,"과일","품종","금액"]
[null,null,"사과","후지",50]
[null,null,"오렌지","플로리다",20]
[null,null,"바나나","캐번디시",60]
[null,null,"레몬","러프",40]
[null,null,"사과","허니크리스프",50]
[null,null,"오렌지","네이블",20]
[null,null,"바나나","레이디 핑거",60]
[null,null,"레몬","유레카",40]
[null,null,"사과","허니크리스프",50]
[null,null,"오렌지","네이블",20]
[null,null,"바나나","캐번디시",60]
[null,null,"레몬","유레카",40]
[]
[null,null,"과일","품종","사용해 보기"]
[null,null,"레몬","유레카",{"$f":"AVERAGEIFS(E92:E103,C92:C103,C106,D92:D103,D106)","v":40}]
{"$rows_empty":10}
[null,null,"항목","금액"]
[null,null,"빵",50]
[null,null,"도넛",100]
[null,null,"쿠키",40]
[null,null,"케이크",50]
[null,null,"파이",20]
[{"$nulls":3},{"$f":"SUMIF(D118:D122,\">=50\")","v":200}]

{"sheet":"함수 마법사","index":10,"n_rows":14,"n_cols":4,"rows_kept":14}
["함수 마법사 활용"]
["필요한 함수 이름을 알고 있지만 작성 방법을 모르는 경우 함수 마법사를 사용하여 도움을 받을 수 있습니다.\n"]
["D10 셀을 선택한 다음 수식 > 함수 삽입으로 이동하고 함수 검색 상자에 VLOOKUP을 입력한 후 이동을 누릅니다. VLOOKUP이 강조 표시되면 맨 아래의 확인을 클릭합니다. 목록에서 함수를 선택하면 해당 함수의 구문이 표시됩니다.\n"]
["다음으로 해당하는 텍스트 상자에 함수 인수를 입력합니다. 인수를 입력할 때마다 Excel에서 계산하고 결과를 표시하며 최종 결과를 맨 아래에 표시합니다. 각 섹션을 입력하면 각 인수의 조건이 양식 아래쪽에 나열됩니다. 완료한 경우 확인을 누르면 자동으로 수식이 입력됩니다.\n\n\n",null,"과일","금액"]
["확인해 보기\n=VLOOKUP(C10,C5:D8,2,FALSE)와 같이 입력해야 합니다.",null,"사과",50]
["알아 둘 사항\n셀 및 범위 참조를 입력하거나 마우스로 선택할 수 있습니다.",null,"오렌지",20]
["알아 둘 사항\n각 인수의 섹션을 입력하면 인수 설명이 양식 아래쪽에서 수식 결과 위에 표시됩니다.\n",null,"바나나",60]
["이전",null,"레몬",40]
["다음"]
["웹에서 자세한 내용 보기",null,"사과",{"$f":"VLOOKUP(C10,C5:D8,2,FALSE)","v":50}]
["Excel의 수식 개요"]
["Excel 함수(범주별)"]
["Excel 함수(사전순)"]
["온라인 무료 Excel 교육"]

{"sheet":"수식 오류","index":11,"n_rows":36,"n_cols":4,"rows_kept":36}
["수식 오류 해결"]
["특정 시점에 오류가 있는 수식을 발견하면 Excel에서 #ErrorName이 표시됩니다. 오류는 올바르게 작동하지 않는 경우를 알려주기 때문에 유용하지만 해결하기 까다로울 수 있습니다. 다행히 오류의 원인을 추적하고 해결하는 데 도움이 될 수 있는 몇 가지 옵션이 있습니다.\n"]
["오류 검사 - 수식 > 오류 검사로 이동합니다. 그러면 특정 오류의 일반적인 원인을 설명하는 대화 상자가 로드됩니다. D9 셀에서 #N/A 오류는 \"사과1\"와 일치하는 값이 없기 때문에 발생합니다. 있는 값을 사용하여 이 오류를 해결하거나 IFERROR로 이 오류를 표시하지 않거나 무시할 수 있으며 있는 값을 사용하면 이 오류가 사라집니다.\n",null,"과일","금액"]
["이 오류에 대한 도움말을 클릭하면 오류 메시지와 관련된 도움말 항목이 열립니다. 계산 단계 표시를 클릭하면 수식 계산 대화 상자가 로드됩니다.\n",null,"사과",50]
["계산을 클릭할 때마다 Excel에서는 수식을 한 번에 한 구역씩 단계별로 실행합니다. 오류가 발생하는 이유는 알려주지 않을 수도 있지만 오류가 발생하는 위치는 표시합니다. 이 경우 도움말 항목을 살펴보고 수식에서 잘못된 사항을 추론합니다.\n",null,"오렌지",20]
["실험\n여기에서 무엇이 잘못되었나요? 힌트: 모든 항목의 합계를 내려고 합니다.",null,"바나나",60]
["알아 둘 사항\n옵션을 클릭하면 Excel의 오류를 표시할지 무시할지를 결정하는 규칙을 설정할 수 있습니다.\n",null,"레몬",40]
["이전"]
["다음",null,"사과1",{"$f":"VLOOKUP(C9,C3:D7,2,FALSE)","v":{"$error":"#N/A"}}]
["웹에서 자세한 내용 보기"]
["수식에서 오류 검색"]
["무효가 된 수식을 방지하는 방법"]
["중첩된 수식을 한 번에 한 단계씩 계산"]
["온라인 무료 Excel 교육"]
{"$rows_empty":15}
[null,null,"과일","금액"]
[null,null,"사과",50]
[null,null,"오렌지",20]
[null,null,"바나나",60]
[null,null,"레몬",40]
[]
[null,null,"합계",{"$f":"sume(D31:D34)","v":{"$error":"#NAME?"}}]

{"sheet":"자세한 정보","index":12,"n_rows":5,"n_cols":1,"rows_kept":5}
["Excel에 대한 추가 질문이 있으신가요?"]
["Alt+Q를 누르고 알고 싶은 내용을 입력합니다."]
["더 자세히 알아보세요. 다음 방법으로 Excel에 대한 더 자세한 정보를 확인해 볼 수 있습니다."]
["커뮤니티: 질문을 하고 다른 Excel 사용자와 교류하세요.\n"]
["그 밖의 새로운 기능\nOffice 365 구독자는 업데이트 및 새 기능을 지속적으로 받을 수 있습니다.\n\n"]